Cogmind - Beta 13 X1 @@@ ROGUE MODE // 2023.10.10 @ 19:53:01 Player: VR-DUX Result: Destroyed by G-47 Trooper with Particle Gun Performance ------------- Evolutions (0) 0 Regions Visited (2) 400 Robots Destroyed (37) 185 Value Destroyed (778) 778 Prototype IDs (0) 0 Alien Tech Used (0) 0 Bonus (0) 0 TOTAL SCORE: 1363 Bonus ------- None Cogmind --------- Core Integrity 0/250 Matter 41/300 Energy 250/250 System Corruption 0% Temperature Cool (9) Movement Treading (160) Location -10/Subcaves Parts ------- > --- POWER (1) -------- Ion Engine > --- PROPULSION (2) --- Light Treads Light Treads > --- UTILITY (2) ------ Scrap Shield > --- WEAPON (2) ------- Assault Rifle Hammer > --- INVENTORY (5) ---- Subdweller Power Source Light Treads Sensor Array Signal Interpreter Grenade Launcher Peak State ------------ > --- POWER ------------ Ion Engine > --- PROPULSION ------- Light Treads Light Treads > --- UTILITY ---------- Large Storage Unit Makeshift Armor Plating > --- WEAPON ----------- EM Pulse Gun Light Cannon > --- INVENTORY -------- Light Treads Light Treads Light Treads Light Treads Wheel Medium Storage Unit Structural Scanner Sensor Array Signal Interpreter Seismic Detector EM Pulse Gun Assault Rifle Assault Rifle Grenade Launcher Hammer [Rating: 11] Favorites ----------- Power Ion Engine Engine Ion Engine Propulsion Light Treads Treads Light Treads Leg Aluminum Leg Wheel Wheel Utility Large Storage Unit Device Seismic Detector Storage Large Storage Unit Protection Makeshift Armor Plating Weapon Assault Rifle Energy Gun EM Pulse Gun Ballistic Gun Assault Rifle Ballistic Cannon Light Cannon Launcher Grenade Launcher Impact Weapon Hammer Build | -11 -10 -10 ------- Run | Jun Mat Sub Slots Evolved . | . . . Power . | . . . Propulsion . | . . . Utility . | . . . Weapon . | . . . Parts Attached 67 | . 20 47 Power 1 | . 1 . Engine 1 | . 1 . Core . | . . . Reactor . | . . . Propulsion 9 | . 3 6 Treads 8 | . 2 6 Leg . | . . . Wheel 1 | . 1 . Hover . | . . . Flight . | . . . Utility 18 | . 5 13 Device 10 | . 2 8 Storage 2 | . 2 . Processor . | . . . Hackware . | . . . Protection 6 | . 1 5 Artifact . | . . . Weapon 39 | . 11 28 Energy Gun 6 | . . 6 Energy Cannon . | . . . Ballistic Gun 13 | . 6 7 Ballistic Cannon 4 | . . 4 Launcher 3 | . 3 . Special Weapon . | . . . Impact Weapon 13 | . 2 11 Slashing Weapon . | . . . Piercing Weapon . | . . . Special Melee Weapon . | . . . Unidentified Prototypes . | . . . Parts Lost 7 | . 2 5 Power 1 | . 1 . Propulsion 1 | . . 1 Utility 1 | . 1 . Weapon 4 | . . 4 Highest Loss Streak 3 | . 1 3 To Critical Strikes . | . . . Average Slot Usage (%) 96 | . 95 96 Engine 13 | . 13 14 Treads 25 | . 21 27 Leg 1 | . 5 . Device 6 | . 8 5 Storage 12 | . 14 11 Protection 6 | . 1 8 Energy Gun 2 | . . 4 Ballistic Gun 15 | . 27 9 Ballistic Cannon 6 | . . 10 Impact Weapon 2 | . . 3 Naked Turns . | . . . Heaviest Build 34 | 10 30 34 Greatest Support 40 | 20 40 40 Greatest Overweight (x) 2 | . 2 1 Average Overweight (x) . | . . . Largest Inventory Capacity 15 | 8 15 15 Average Capacity 13 | 8 14 13 Most Carried 15 | 6 15 15 Average Carried 12 | 6 13 12 Final Capacity 15 | 8 15 5 Final Carried 15 | 6 15 5 Class Distribution -------------------- 100% | Mutant Dominant Class ---------------- Mutant | -10/Materials Mutant | -10/Subcaves Resources | -11 -10 -10 ----------- Run | Jun Mat Sub Matter Collected 1186 | 210 453 523 Remotely . | . . . Salvage Created 1139 | 75 695 369 Parts 76 | 3 48 25 Haulers Intercepted 1 | . 1 . Recyclers Shooed 2 | . 2 . Parts Field Recycled . | . . . Retrieved Matter . | . . . Parts Self-Destructed 14 | . . 14 Prevented . | . . . Kills | -11 -10 -10 ------- Run | Jun Mat Sub Combat Hostiles Destroyed 21 | . 8 13 Guns 11 | . 6 5 Cannons 7 | . . 7 AOE 3 | . 2 1 Classes Destroyed 10 | 1 8 1 Worker 1 | . 1 . Builder 6 | . 6 . Tunneler 1 | . 1 . Hauler 1 | . 1 . Recycler 3 | 1 2 . Operator 1 | . 1 . Watcher 3 | . 3 . Swarmer 6 | . 3 3 Grunt 5 | . 5 . Subdweller 10 | . . 10 Best Kill Streak 4 | 1 4 3 Combat Bots Only 3 | . 3 3 Max Kills in Single Turn 2 | 1 2 1 Gunslinging . | . . . Exploded 2 | . 2 1 Melee . | . . . Uniques/NPCs Destroyed . | . . . Combat | -11 -10 -10 -------- Run | Jun Mat Sub Damage Taken 1613 | . 354 1259 Core 258 | . 55 203 Absorbed by Shields . | . . . Regen/Repaired (Parts) 17 | . 17 . Core Remaining (%) 100 | 100 . . Volleys Fired 155 | 5 92 58 Largest 2 | 2 2 2 Hottest 75 | 40 40 75 Shots Fired 288 | 10 178 100 Gun 245 | 10 172 63 Cannon 37 | . . 37 Launcher 6 | . 6 . Special . | . . . Kinetic 261 | 10 172 79 Thermal . | . . . Explosive 6 | . 6 . Electromagnetic 21 | . . 21 Robot Hit Streak 24 | 3 11 24 Robot Miss Streak 5 | 3 5 2 Penetration Max . | . . . Secondary Targets . | . . . Shots Hit Robots 187 | 5 100 82 Core Hits 71 | 2 47 22 Critical Kills 1 | . . 1 Critical Parts Destroyed . | . . . Critical Strikes 6 | . . 6 Destroy 1 | . . 1 Blast 5 | . . 5 Melee Attacks 41 | . 3 38 Impact 41 | . 3 38 Slashing . | . . . Piercing . | . . . Sneak Attacks . | . . . Combat Hostiles . | . . . Follow-up Attacks . | . . . Damage Inflicted 2048 | 40 1058 950 Guns 1393 | 40 932 421 Cannons 455 | . . 455 Explosions 200 | . 126 74 Melee . | . . . Ramming . | . . . Kinetic 1757 | 40 932 785 Thermal 74 | . . 74 Explosive 126 | . 126 . Electromagnetic 91 | . . 91 Impact . | . . . Slashing . | . . . Piercing . | . . . Highest Corruption . | . . . Average Corruption . | . . . Corruption Purged . | . . . Corruption Blocked . | . . . Overload Shots . | . . . Overflow Damage . | . . . Projectiles . | . . . Explosions . | . . . Melee . | . . . Knockbacks 10 | . . 10 Impact . | . . . Kinetic 9 | . . 9 Secondary 1 | . . 1 Self-Inflicted Damage 27 | . 27 . Shots 1 | . 1 . Rammed . | . . . Targets Rammed . | . . . Kicked . | . . . Crushed . | . . . Highest Temperature 51 | . 51 . Average Temperature 14 | . 14 . Received Heat Transfer 420 | . 150 270 Siege Activations . | . . . Robots Corrupted . | . . . Combat Hostiles . | . . . Parts Fried . | . . . Impact Corruptions . | . . . Robots Melted . | . . . Combat Hostiles . | . . . Parts Melted . | . . . Heat Transferred 50 | . . 50 Parts Sabotaged . | . . . Parts Stolen . | . . . Parts Stripped . | . . . Power Chain Reactions 1 | . . 1 Missiles Intercepted . | . . . Alert | -11 -10 -10 ------- Run | Jun Mat Sub Peak Influence 220 | 5 220 . Initial 3 | . 3 . Average 52 | 1 53 . Maximum Alert Level 1 | . 1 . Low Security (%) 93 | 100 92 . Level 1 6 | . 7 . Level 2 . | . . . Level 3 . | . . . Level 4 . | . . . Level 5 . | . . . High Security . | . . . Max Security . | . . . Squads Dispatched 1 | . 1 . Investigation 1 | . 1 . Extermination . | . . . Reinforcement . | . . . Assault . | . . . Garrison . | . . . Intercept . | . . . Searches Triggered . | . . . Construction Impeded . | . . . Haulers Reinforced . | . . . Active Scanning Responses . | . . . Cargo Convoy Interrupts . | . . . Stealth | -11 -10 -10 --------- Run | Jun Mat Sub Distress Signals 1 | . 1 . Communications Jammed . | . . . Distress Signals . | . . . Times Spotted 39 | . 17 22 Peak Tracking Total 6 | . 4 6 Tactical Retreats 4 | . . 4 Traps | -11 -10 -10 ------- Run | Jun Mat Sub Traps Triggered 5 | . 1 4 Indirectly . | . . . Trap Hack Attempts . | . . . Triggered . | . . . Disarmed . | . . . Reprogrammed . | . . . Reused . | . . . Traps Extracted . | . . . Installed . | . . . Triggered . | . . . Machines | -11 -10 -10 ---------- Run | Jun Mat Sub Machines Disabled . | . . . Max in Single Turn . | . . . Machines Repaired . | . . . Machines Sabotaged . | . . . Overloaded Fab Kills . | . . . Hacking | -11 -10 -10 --------- Run | Jun Mat Sub Machines Accessed 11 | . 10 1 Terminals 7 | . 7 . Fabricators . | . . . Repair Stations 1 | . 1 . Recycling Units 2 | . 2 . Scanalyzers . | . . . Garrison Access . | . . . Total Hacks 30 | . 28 2 Successful 8 | . 6 2 Failed 22 | . 22 . Catastrophic 3 | . 3 . Database Lockouts . | . . . Manual 18 | . 18 . Terminals 21 | . 21 . Fabricators . | . . . Repair Stations 3 | . 3 . Recycling Units 4 | . 4 . Scanalyzers . | . . . Garrison Access . | . . . Terminal Hacks 4 | . 2 2 Record 2 | . . 2 Robot Analysis 1 | . 1 . Zone Layout 1 | . 1 . Fabricator Hacks . | . . . Repair Station Hacks 2 | . 2 . Scan Component 1 | . 1 . Repair 1 | . 1 . Recycling Unit Hacks 2 | . 2 . Retrieve Components 2 | . 2 . Scanalyzer . | . . . Garrison Access Hacks . | . . . Unauthorized Hacks . | . . . Terminals . | . . . Fabricators . | . . . Repair Stations . | . . . Recycling Units . | . . . Scanalyzers . | . . . Garrison Access . | . . . Data Cores Recovered 1 | . 1 . Used 1 | . 1 . Hacking Detections 8 | . 8 . Full Trace Events . | . . . Feedback Events . | . . . Feedback Blocked . | . . . Robot Schematics Acquired . | . . . Robots Built . | . . . Authchips . | . . . Time . | . . . Total Robot Build Rating . | . . . Part Schematics Acquired . | . . . Parts Built . | . . . Authchips . | . . . Time . | . . . Total Part Build Rating . | . . . Parts Repaired 1 | . 1 . Time 26 | . 26 . Parts Recycled . | . . . Recycled Matter . | . . . Retrieved Matter . | . . . Retrieved Components 12 | . 12 . Parts Scanalyzed . | . . . Part Schematics Acquired . | . . . Parts Damaged . | . . . Bothacking | -11 -10 -10 ------------ Run | Jun Mat Sub Used RIF Installer . | . . . Robots Hacked . | . . . Non-combat . | . . . Combat . | . . . Robot Hacks Applied . | . . . Relay Couplers Released . | . . . Fabnet Peak Effective % . | . . . Robots Rewired . | . . . Allies Hacked . | . . . Hacks Repelled . | . . . Allies | -11 -10 -10 -------- Run | Jun Mat Sub Total Allies . | . . . Largest Group . | . . . Highest-Rated Group . | . . . Highest-Rated Ally . | . . . Total Orders . | . . . Ally Attacks . | . . . Total Damage . | . . . Kills . | . . . Allies Corrupted . | . . . Allies Melted . | . . . Intel | -11 -10 -10 ------- Run | Jun Mat Sub Robot Analysis Total 1 | . 1 . Derelict Logs Recovered 1 | . . 1 Drone Launches . | . . . Drone Recoveries . | . . . Exploration | -11 -10 -10 ------------- Run | Jun Mat Sub Turns Passed 5522 | 21 1899 3602 Spaces Moved 3006 | 7 1010 1989 Core . | . . . Treads 2680 | . 691 1989 Legs 167 | 7 160 . Wheels 159 | . 159 . Hover . | . . . Flight . | . . . Fastest Speed 110 | 120 110 160 Average Speed 155 | 120 145 160 Slowest Speed 240 | 120 160 240 Overloaded Moves . | . . . Propulsion Burnouts . | . . . Robots Hopped . | . . . Cave-ins Triggered . | . . . Exploration Rate (%) 59 | 2 96 80 Regions Visited 2 Branch Regions 1 Pre-discovered Areas . | . . . Known Exits Taken . | . . . Unknown Exits Taken 2 | 1 1 . Scrap Searched 1 | . . 1 Spaces Dug 15 | . 13 2 Terrain Destroyed 61 | . 51 10 Melee 4 | . 2 2 Projectile . | . . . AOE 57 | . 49 8 Terrain Rammed . | . . . Walls Destroyed . | . . . Machines Disabled . | . . . Actions | -11 -10 -10 --------- Run | Jun Mat Sub Total 3502 | 11 1276 2215 Wait 187 | . 121 66 Move 3004 | 6 1009 1989 Hop . | . . . Pick Up 28 | . 20 8 Fast Attach 3 | . 3 . Attach 13 | . 5 8 Detach 1 | . 1 . Swap 51 | . 12 39 Drop 17 | . 10 7 Fire 155 | 5 92 58 Melee 41 | . 3 38 Ram . | . . . Kick . | . . . Crush . | . . . Escape Stasis . | . . . Rewire . | . . . Trap . | . . . Miscellaneous 2 | . . 2 Route ------- -11/Junkyard -10/Materials (discovered 6 exits: [*Mat x3] / [*Min x2] / *Sub) -10/Subcaves (discovered 1 exit: *Mat) History --------- Turn | Location | Event 1 | -11/Junkyard | Discovered new exit (range 2) 22 | -11/Junkyard | Entered Materials 319 | -10/Materials | Build established: Mutant 377 | -10/Materials | Discovered new exit (range 4) 470 | -10/Materials | Discovered new exit (range 11) 510 | -10/Materials | Discovered new exit (range 7) 668 | -10/Materials | Discovered new exit (range 13) 699 | -10/Materials | Discovered new exit (range 6) 996 | -10/Materials | Repaired Sensor Array 1268 | -10/Materials | Discovered new exit (range 12) 1921 | -10/Materials | Entered Subcaves 1922 | -10/Subcaves | Shifting Twisted Machinery released Sub. Monowheel 1923 | -10/Subcaves | Shifting Twisted Machinery released Sub. Shrapnel Launcher 1974 | -10/Subcaves | A swath of the cavern ceiling suddenly collapsed 2005 | -10/Subcaves | Identified exit to Materials 2456 | -10/Subcaves | Visited Clippyterm 2461 | -10/Subcaves | Learned Research machine intel 3194 | -10/Subcaves | Core integrity fell below 50% 3212 | -10/Subcaves | Core integrity fell below 20% 4316 | -10/Subcaves | Shifting Twisted Machinery released Battle Rifle 4644 | -10/Subcaves | Shifting Twisted Machinery released Sub. Power Source 4677 | -10/Subcaves | Shifting Twisted Machinery released Hvy. Battle Rifle 4807 | -10/Subcaves | Lost 3 parts (1n2w) 5298 | -10/Subcaves | A swath of the cavern ceiling suddenly collapsed 5523 | -10/Subcaves | Destroyed by G-47 Trooper with Particle Gun Last Messages --------------- 04781_ Acquired 30 matter. 04807_ Acquired 4 matter. 04811_ Acquired 3 matter. 04812_ Acquired 36 matter. 04816_ Acquired Scrap Shield. 04820_ Acquired Scrap Shield Fragment. 04824_ Acquired 1 matter. 04913_ Dropped Lrg. Storage Unit. 04914_ Dropped Mak. Armor Plating. 04917_ Acquired Grenade Launcher. 04921_ Acquired Scrap Shield Fragment. 04922_ Dropped Scrap Shield Fragment. 04923_ Scrap Shield Fragment affixed to Scrap Shield (+47). 04925_ Acquired Sub. Power Source. 04993_ GB-O9Y(R) affixes Scrap Shield Fragment to Scrap Shield. 05000_ GB-O9Y(R) destroyed. 05003_ Scrap Shield Fragment affixed to Scrap Shield (+48). 05008_ Acquired 47 matter. A swath of the cavern ceiling suddenly collapses. 05305_ Dropped Lgt. Treads. Map ----- +----------------------------------------------------+ | ????????????????????????????????????????????# ## | | ????????????????????????????????????????????# | | ???????????????????????????????????????????## | | ???????????????????????????????????????????# ### | | ???????????????????????????????????????????# #### | | ???????????????????????????????????????????# ##? | | ???????????????###????????????????????###### ## | | ????????? ???## ???????????????????## | | ?????????? #??# ????##?????????????# | | ??????????? #?# ???? #?????????????#### | | ???????#???# ## ??? ?????????????????## # | | ???????# ??# #??# ???????????????????## ## ## | | ????????# ?# ### ?????????????? ?????##?# ##? | | ???????## # ????????????## ????????###?? | | ???????# ????????????? ????????????? | | ???????## ?????????????? #????????????? | | ???????? #?????????????# ##???????????? | | ????????????# ###??????????? ##??????????? | | ?????????????# ##?????????? ##?????????? | | ?????????????# #?????????? #?????????? | | ????????????## ###????????# #?????????? | | ???????????## #????????# #??????????? | | ???????????# #???????? #??????????? | | ??????????# ##### #????????# ##?????????? | | ?????????# #????## ########## #?????????? | | ????????# ??????## g @## #?????????? | | ???????# ????????## #?????????? | | ??????# ?????????# ### ##?????????? | | ??????#### ??????????# ###### ##??????????? | | ?????????# ?????????## ##??## ###?????????? | | ?????????#??????????# #???# #?????????? | | ????????????????????# ##### #?????????? | | ????????????????????## ### ##" #?????????? | | ?????????????????????# ###""##"## ##?????????? | | ?????????????????????# #?###""#### ##??????????? | | ?????????????????????# #???##""### #???????????? | | ?????????????????????# #????##"""## #???????????? | | ???????????####?????############ #####???????????? | | ??????????## #????##"##?##"# #"""#??????????????? | | ??????????# #????#" "##"# ###""###?????????????? | | ?????????## ##????##"#""##""#""""##?????????????? | | ????????## ##?????#"""## """"""####?????????????? | | ???????## ##?##??#""###"#"###"""##?????????????? | | ???????# ## ##?##### "###?#"#"#####??????????? | | ???????## #####?##"#???##"#" ##########?? | | ????????# #??###??###"" #?? | | ???????## ##?#######""" = #?? | | ??????## ## #?## #### !!= ! ##?? | | ??????# ##? #### #??# "! ####??? | | ??????# ### ## ##??## ###""!##????? | +----------------------------------------------------+ Best States ------------- Heat Dissipation 25 Energy Generation 10 Energy Capacity 250 Matter Stores 300 Matter Capacity 300 Sight Range 16 Terrain Scan Range 14 Terrain Scan Density 10 Armor Coverage 800 Evasion (%) 55 Recoil Reduction 2 Item Schematics ----------------- None Robot Schematics ------------------ None Fabricated ------------ Nothing Alien Tech Used ----------------- None Achievements -------------- None Challenges ------------ None Game ------ Seed SkeletonFrostDriver Manual? 0 Play Time 00:47:03 Cumulative 165.7 hours Start 2023.10.10 @ 19:03:20 End 2023.10.10 @ 19:53:01 Sessions 3 Manual Loads 0 Difficulty Rogue Special Mode None Game No. 106 Rogue 106 Adventurer 0 Explorer 0 Win Type - Total 3 Types 2/0/1/0/0/0/0/0/0 Lore% 51 Gallery% 51 Achievement% 49 Wizard Run 0 Options --------- ASCII 0 Keyboard 0 Movement Mouse Keybinds 0 Fullscreen 1 Font 18/SmallcapsGlow Map View 76x50 Tactical HUD 1 Map Filters NONE Filters NONE Steam X RUN: 2b37d7cd-ea53-4e2d-8195-b91675848bb5